fUST/lending_fUST_20240717
["ID","MTS","AMOUNT","RATE_DAILY","PERIOD"]
[332474959,1721223280806,298.10863741,0.00014999,2]
[332474960,1721223282805,1507.16490374,0.00014999,2]
[332474961,1721223282830,2419.12199419,0.00014999,2]
[332474962,1721223283031,160.51652428,0.00014999,2]
[332474963,1721223286123,201.75796019,0.00014999,2]
[332474964,1721223286715,909.60427535,0.00014999,2]
[332474965,1721223290956,180.05717902,0.00014999,2]
[332474966,1721223293084,527.86200542,0.00014999,2]
[332474967,1721223297258,1287.68811622,0.00015,2]
[332474968,1721223298140,213.1258635,0.00015,2]
[332474969,1721223299585,352.46506283,0.00014999,2]
[332474970,1721223300822,155.7892907,0.00014999,2]
[332474971,1721223300863,154.95844263,0.00014999,2]
[332474972,1721223301300,366.7606379,0.00014999,2]
[332474973,1721223303167,155.9589996,0.00014999,2]
[332474974,1721223303210,5871.85052297,0.00014999,2]
[332474975,1721223318391,284.19314857,0.00014999,2]
[332474976,1721223336373,206.05318776,0.00014999,2]
[332474977,1721223376943,3132.25749208,0.00014999,2]
[332474978,1721223388082,2109.01423885,0.00014999,2]
[332474979,1721223392326,150.5,0.00021907,62]
[332474980,1721223392624,150.5,0.00021897,62]
[332474981,1721223393101,150.5,0.00021887,62]
[332474982,1721223414147,283.0700558,0.00014999,2]
[332474984,1721223425212,316.96054999,0.00014999,2]
[332474985,1721223435559,158.56079246,0.00014999,2]
[332474986,1721223445139,772.09,0.00010959,2]
[332474987,1721223456529,481.25489254,0.00014999,2]
[332474989,1721223507331,4713.01965611,0.00014999,2]
[332474990,1721223507639,3776.426534,0.00014999,2]
[332474991,1721223512248,150.5,0.00021907,62]
[332474992,1721223512724,198.69,0.00021897,62]
[332474993,1721223513286,154.95777867,0.00014999,2]
[332474994,1721223519502,2108.86510417,0.00014999,2]
[332475002,1721223578078,567.57694709,0.00014999,2]
[332475004,1721223589188,950.00727179,0.00015,2]
[332475009,1721223607168,154.8257247,0.00014999,2]
[332475012,1721223624272,529.80393287,0.00014999,2]
[332475014,1721223643146,1106.379575,0.00015,2]
[332475015,1721223645889,155.88127206,0.00014999,2]
[332475021,1721223664220,403.83250955,0.00014999,2]
[332475024,1721223679922,492.98180621,0.00014999,2]
[332475025,1721223707773,155.09743665,0.00014999,2]
[332475026,1721223713677,275.90770132,0.00014999,2]
[332475027,1721223715936,256.624659,0.00015356,2]
[332475028,1721223739027,570.6668574,0.00014999,2]
[332475029,1721223739160,155.71902582,0.00014999,2]
[332475030,1721223746004,178.70954864,0.00014999,2]
[332475031,1721223762155,193.87391639,0.00014999,2]
[332475032,1721223767413,155.11378883,0.00015356,2]
[332475034,1721223770952,1045.95559493,0.00014999,2]
[332475035,1721223773374,350.86638177,0.00015356,2]
[332475036,1721223778561,481.17644705,0.00014999,2]
[332475038,1721223786570,481.17644705,0.00014999,2]
[332475039,1721223794602,155.47803233,0.00014999,2]
[332475040,1721223796859,192.97707512,0.00014999,2]
[332475041,1721223817863,2660.77157843,0.00015,2]
[332475042,1721223819463,504.67805015,0.00014999,2]
[332475043,1721223821802,922.71042822,0.00014999,2]
[332475044,1721223825908,154.79103211,0.00014999,2]
[332475049,1721223924385,5522.11991917,0.00014998,2]
[332475050,1721223945294,208.46073886,0.00014999,2]
[332475051,1721223951376,235.12257127,0.00014999,2]
[332475052,1721223956397,24880.0,0.00015356,2]
[332475053,1721223969889,277.05335432,0.00014999,2]
[332475054,1721223970218,354.46681452,0.00014999,2]
[332475056,1721223991571,4419.99677643,0.00014999,2]
[332475057,1721223994900,155.17642552,0.00014999,2]
[332475060,1721224031369,156.16524309,0.00014999,2]
[332475061,1721224053710,303.12839263,0.00014999,2]
[332475062,1721224060463,6591.71086113,0.00014998,2]
[332475066,1721224090852,898.13225969,0.00014999,2]
[332475067,1721224093817,1492.16038947,0.00014999,2]
[332475068,1721224096941,-448.12864753,0.00015995,2]
[332475071,1721224097492,-43.77274411,0.00015995,2]
[332475073,1721224097525,-148.23502198,0.00016155,2]
[332475075,1721224097576,-448.12864753,0.00016155,2]
[332475078,1721224098562,778.04856015,0.00014999,2]
[332475079,1721224099755,155.18952408,0.00014999,2]
[332475080,1721224103232,10000.0,0.00015701,2]
[332475082,1721224109896,524.3970699,0.00014999,2]
[332475083,1721224111777,307.16240361,0.00014999,2]
[332475084,1721224112269,222.77167699,0.00014999,2]
[332475085,1721224112656,10000.0,0.00015701,2]
[332475087,1721224114902,16267.0092697,0.00014998,2]
[332475089,1721224116290,154.8538773,0.00014999,2]
[332475090,1721224121953,-469.89394875,0.00016155,2]
[332475092,1721224122025,-469.89394875,0.00016155,2]
[332475093,1721224123504,10000.0,0.00015701,2]
[332475094,1721224129873,185.85848762,0.00014999,2]
[332475095,1721224131199,854.13440794,0.00014999,2]
[332475096,1721224147456,-488.6897067,0.00016055,2]
[332475097,1721224147512,-488.6897067,0.00016055,2]
[332475098,1721224153125,1299.44,0.00015701,2]
[332475099,1721224172213,-508.23729497,0.00016055,2]
[332475100,1721224172286,-52.69582469,0.00016055,2]
[332475101,1721224172320,-300.0,0.00016244,2]
[332475102,1721224172354,-155.54147028,0.00016244,2]
[332475103,1721224180859,496.12382029,0.00014999,2]
[332475104,1721224192566,343.7508152,0.00014999,2]
[332475105,1721224200641,284.50722532,0.00014999,2]
[332475106,1721224204046,3000.0,0.00015301,2]
[332475107,1721224207996,10598.3900565,0.00014998,2]
[332475145,1721224234431,-287.72462905,0.00016244,2]
[332475147,1721224234442,-300.0,0.00016244,2]
[332475149,1721224234452,-300.0,0.00016244,2]
[332475151,1721224234463,-9212.34444395,0.00016244,2]
[332475190,1721224235845,216.09320068,0.00014999,2]
[332475193,1721224238436,155.87884856,0.00014999,2]
[332475206,1721224239190,-7054.66482575,0.00016244,2]
[332475207,1721224239200,-9133.08306603,0.00016245,2]
[332475208,1721224239210,-300.0,0.00016254,2]
[332475209,1721224239220,-525.88573335,0.00016254,2]
[332475210,1721224239231,-57309.44199021,0.00016255,2]
[332475211,1721224239241,-13869.06062822,0.00016255,2]
[332475212,1721224239251,-21275.29548149,0.00016255,2]
[332475213,1721224239261,-1498.79327709,0.00016255,2]
[332475214,1721224239270,-208.20094769,0.00016255,2]
[332475215,1721224239280,-168.517279,0.00016305,2]
[332475216,1721224239290,-168.517279,0.0001639,2]
[332475217,1721224239300,-168.517279,0.00016474,2]
[332475218,1721224239313,-168.517279,0.00016559,2]
[332475219,1721224239323,-168.517279,0.00016644,2]
[332475221,1721224239332,-168.517279,0.00016729,2]
[332475222,1721224239342,-277.01550922,0.00016808,2]
[332475223,1721224239353,-168.517279,0.00016814,2]
[332475224,1721224239363,-168.517279,0.00016899,2]
[332475225,1721224239373,-168.517279,0.00016984,2]
[332475226,1721224239383,-168.517279,0.00017069,2]
[332475227,1721224239396,-168.517279,0.00017154,2]
[332475228,1721224239407,-420.0,0.00017868,2]
[332475229,1721224239416,-2430.89004962,0.00018179,2]
[332475230,1721224239425,-518.42478089,0.00018179,2]
[332475231,1721224239435,-195.833007,0.0001818,2]
[332475232,1721224239445,-1994.03695195,0.0001818,2]
[332475233,1721224239455,-5508.34064728,0.0001818,2]
[332475234,1721224239465,-191.39935973,0.00018798,2]
[332475235,1721224239474,-30000.0,0.00018798,2]
[332475236,1721224239484,-9133.08306603,0.00018888,2]
[332475237,1721224239494,-452.48864114,0.00018899,2]
[332475238,1721224239504,-946.50502075,0.00019,2]
[332475239,1721224239514,-197.57665127,0.00019039,2]
[332475240,1721224239524,-814.78152441,0.00019039,2]
[332475241,1721224239533,-250.0,0.00019041,2]
[332475242,1721224239543,-310.45769094,0.00019065,2]
[332475243,1721224239553,-261.16520636,0.00019165,2]
[332475244,1721224239562,-184.71429002,0.00019165,2]
[332475245,1721224239572,-164.546732,0.00019178,2]
[332475246,1721224239582,-587.0,0.00019655,2]
[332475247,1721224239592,-1106.55797426,0.00019689,2]
[332475248,1721224239602,-7009.80295961,0.00019689,2]
[332475249,1721224239611,-310.45769093,0.00019819,2]
[332475250,1721224239621,-228.33337167,0.0002,2]
[332475251,1721224239630,-1000.0,0.0002,4]
[332475252,1721224239643,-309.45844772,0.0002,2]
[332475253,1721224239655,-154.88949836,0.00020545,2]
[332475254,1721224239665,-293.89533444,0.00020545,2]
[332475255,1721224239674,-310.45769093,0.00020573,2]
[332475256,1721224239683,-1000.0,0.00021,21]
[332475257,1721224239696,-396.60210355,0.00021,2]
[332475258,1721224239705,-159.69326665,0.00021095,2]
[332475259,1721224239715,-579.127659,0.00021096,2]
[332475260,1721224239724,-260.9,0.00021191,2]
[332475261,1721224239733,-310.45769093,0.00021327,2]
[332475262,1721224239743,-260.9,0.00021407,2]
[332475263,1721224239752,-823.0,0.00021621,2]
[332475264,1721224239762,-260.9,0.00021622,2]
[332475265,1721224239771,-1945.47989268,0.0002171,2]
[332475266,1721224239781,-3000.0,0.000218,2]
[332475267,1721224239790,-9133.08306603,0.00021807,3]
[332475268,1721224239799,-5299.099794,0.0002181,2]
[332475270,1721224239809,-500.0,0.00021816,2]
[332475272,1721224239818,-500.0,0.00021816,2]
[332475274,1721224239827,-193.17326787,0.00021816,2]
[332475275,1721224239836,-195.9277349,0.00021816,2]
[332475276,1721224239846,-201.83805034,0.00021816,2]
[332475277,1721224239855,-579.06757953,0.00021816,2]
[332475285,1721224240115,-500.0,0.00021816,2]
[332475287,1721224240127,-353.99596154,0.00021816,2]
[332475289,1721224240138,-500.0,0.00021816,2]
[332475291,1721224240151,-172.68065646,0.00021816,2]
[332475293,1721224240162,-500.0,0.00021816,2]
[332475295,1721224240172,-500.0,0.00021816,2]
[332475297,1721224240182,-500.0,0.00021816,2]
[332475299,1721224240193,-525.68290566,0.00021816,2]
[332475301,1721224240205,-500.0,0.00021816,2]
[332475303,1721224240215,-500.0,0.00021816,2]
[332475305,1721224240225,-500.0,0.00021816,2]
[332475307,1721224240236,-500.0,0.00021816,2]
[332475309,1721224240245,-500.0,0.00021816,2]
[332475311,1721224240255,-500.0,0.00021816,2]
[332475313,1721224240264,-500.0,0.00021816,2]
[332475315,1721224240273,-500.0,0.00021816,2]
[332475317,1721224240283,-500.0,0.00021816,2]
[332475319,1721224240293,-500.0,0.00021816,2]
[332475321,1721224240302,-500.0,0.00021816,2]
[332475323,1721224240316,-500.0,0.00021816,2]
[332475325,1721224240325,-500.0,0.00021816,2]
[332475327,1721224240334,-500.0,0.00021816,2]
[332475328,1721224240344,-500.0,0.00021816,2]
[332475329,1721224240354,-500.0,0.00021816,2]
[332475330,1721224240364,-500.0,0.00021816,2]
[332475331,1721224240373,-500.0,0.00021816,2]
[332475332,1721224240383,-500.0,0.00021816,2]
[332475333,1721224240394,-500.0,0.00021816,2]
[332475334,1721224240405,-500.0,0.00021816,2]
[332475335,1721224240414,-500.0,0.00021816,2]
[332475336,1721224240423,-500.0,0.00021816,2]
[332475337,1721224240433,-500.0,0.00021816,2]
[332475338,1721224240443,-493.1600335,0.00021816,2]
[332475339,1721224240453,-2000.0,0.00021817,2]
[332475340,1721224240463,-30000.00000001,0.00021817,3]
[332475341,1721224240472,-260.9,0.00021838,2]
[332475342,1721224240482,-1000.0,0.00021855,2]
[332475343,1721224240491,-1000.0,0.00021859,2]
[332475344,1721224240500,-5159.77007997,0.00021884,2]
[332475345,1721224240510,-1000.0,0.00021886,2]
[332475346,1721224240520,-9133.08306603,0.00021887,3]
[332475347,1721224240530,-60192.95654169,0.00021888,2]
[332475360,1721224240709,-52359.78338497,0.00021888,2]
[332475362,1721224240720,-9216.82816213,0.00021888,2]
[332475451,1721224241573,-845.11491107,0.00018179,2]
[332475454,1721224241585,-626112.37022221,0.00021888,2]
[332475456,1721224241596,-1000.0,0.0002189,2]
[332475457,1721224241606,-344.96997794,0.00021894,2]
[332475458,1721224241615,-6992.96242863,0.00021897,2]
[332475459,1721224241624,-428.94151396,0.00021897,2]
[332475460,1721224241633,-6878.25807542,0.00021897,2]
[332475461,1721224241642,-226.06683349,0.00021897,2]
[332475462,1721224241652,-215.01715484,0.00021897,2]
[332475463,1721224241661,-170.97082717,0.00021897,2]
[332475464,1721224241671,-1168.32811277,0.00021897,2]
[332475465,1721224241682,-764.99692513,0.00021897,2]
[332475466,1721224241692,-150.112233,0.000219,4]
[332475467,1721224241703,-150.112233,0.000219,5]
[332475468,1721224241714,-18266.1661321,0.00021907,3]
[332475469,1721224241724,-45665.4153301,0.00021907,3]
[332475470,1721224241735,-64278.34635401,0.00021917,5]
[332475471,1721224241749,-5568.25905545,0.00021917,5]
[332475572,1721224243703,-2000.0,0.00021817,2]
[332475574,1721224243713,-7574.70550285,0.00021917,5]
[332475649,1721224351831,1637.92525676,0.00014999,2]
[332475650,1721224352971,10612.438315,0.00014998,2]
[332475653,1721224365772,725.94141239,0.00014999,2]
[332475654,1721224370294,532.91507257,0.00014999,2]
[332475656,1721224379061,6981.98564229,0.00014998,2]
[332475657,1721224379845,192.46423317,0.00014999,2]
[332475659,1721224399138,154.93158733,0.00014999,2]
[332475661,1721224412842,1491.5302579,0.00014999,2]
[332475662,1721224413922,16353.90384972,0.00014999,2]
[332475668,1721224430848,938.78944227,0.00014999,2]
[332475673,1721224459046,283.74996328,0.00014999,2]
[332475677,1721224481615,208.96724815,0.00014999,2]
[332475691,1721224536228,158.22636108,0.00014999,2]
[332475692,1721224540918,7743.72236029,0.00014998,2]
[332475694,1721224556857,318.92327881,0.00014999,2]
[332475696,1721224565741,154.91169719,0.00014999,2]
[332475698,1721224568032,16260.0862955,0.00014999,2]
[332475699,1721224570108,8172.45492358,0.00014998,2]
[332475701,1721224582388,4702.50407464,0.00014999,2]
[332475702,1721224585146,213.29720529,0.00014999,2]
[332475703,1721224587203,3779.26241666,0.00014999,2]
[332475705,1721224590768,155.80038344,0.00014999,2]
[332475706,1721224593444,182.56312727,0.00014999,2]
[332475707,1721224596547,2105.18558339,0.00014999,2]
[332475708,1721224598075,2130.77634611,0.00014999,2]
[332475709,1721224607846,842.47001101,0.00014999,2]
[332475710,1721224615091,568.28433446,0.00014999,2]
[332475713,1721224624180,459.92204717,0.00014999,2]
[332475714,1721224625932,662.80627951,0.00014999,2]
[332475715,1721224627648,302.21182725,0.00014999,2]
[332475716,1721224634942,283.3034036,0.00014999,2]
[332475719,1721224640819,155.01671966,0.00014999,2]
[332475721,1721224642399,2853.77117723,0.00015,2]
[332475722,1721224643855,712.01102421,0.00014999,2]
[332475729,1721224656309,534.0397176,0.00014999,2]
[332475734,1721224675171,3134.02290683,0.00014999,2]
[332475737,1721224681088,817.52323236,0.00014999,2]
[332475738,1721224683209,3776.00357606,0.00014999,2]
[332475747,1721224705154,196.44854492,0.00014999,2]
[332475748,1721224707560,1933.77133103,0.00014999,2]
[332475751,1721224717668,209.48038156,0.00014999,2]
[332475755,1721224744381,230.27750003,0.00014999,2]
[332475756,1721224745803,2125.94379702,0.00014999,2]
[332475760,1721224805290,159.69326665,0.00014999,2]
[332475761,1721224827229,3126.79366513,0.00014999,2]
[332475766,1721224958239,518.1114155,0.00014999,2]
[332475768,1721225021958,42644.47438204,0.00015547,2]
[332475769,1721225021986,6245.54357446,0.00015547,2]
[332475777,1721225093428,441.3239895,0.00014999,2]
[332475778,1721225095718,194.39287455,0.00014999,2]
[332475780,1721225107916,159.8423972,0.00014999,2]
[332475781,1721225123712,212.98035589,0.00014999,2]
[332475782,1721225125489,11083.31330172,0.00015547,2]
[332475783,1721225127346,576.0774013,0.00014999,2]
[332475784,1721225127718,4689.05538713,0.00015547,2]
[332475786,1721225159428,155.51415868,0.00014999,2]
[332475787,1721225161222,209.38449537,0.00014999,2]
[332475788,1721225163906,3699.38575125,0.000156,2]
[332475789,1721225171228,547.36693287,0.00015,2]
[332475790,1721225176827,177.75835486,0.00014999,2]
[332475793,1721225186115,182.82989065,0.00014999,2]
[332475794,1721225189658,353.61737607,0.00014999,2]
[332475797,1721225228868,2673.41041908,0.00014999,2]
[332475798,1721225236785,158.35036999,0.00014999,2]
[332475799,1721225239852,309.14983794,0.00015,2]
[332475800,1721225246416,1637.92525676,0.00014999,2]
[332475801,1721225257819,909.7461121,0.00014999,2]
[332475803,1721225274373,1287.68811622,0.00015,2]
[332475804,1721225274418,196.00834721,0.00014999,2]
[332475805,1721225278984,171.32771551,0.00014999,2]
[332475806,1721225287912,159.74508638,0.00014999,2]
[332475807,1721225289374,160.11041109,0.00014999,2]
[332475811,1721225296309,155.42210919,0.00014999,2]
[332475812,1721225296786,4720.09136169,0.00014999,2]
[332475814,1721225298060,232.91862498,0.00014999,2]
[332475815,1721225298090,160.0,0.00014999,2]
[332475816,1721225299296,350.04752595,0.00014999,2]
[332475817,1721225300047,524.02241824,0.00014999,2]
[332475819,1721225303897,662.70423016,0.00014999,2]
[332475820,1721225308971,2423.89779899,0.00015,2]
[332475821,1721225315682,1055.47074907,0.00014999,2]
[332475822,1721225317914,1434.44237247,0.00014999,2]
[332475823,1721225321838,230.14662138,0.00014999,2]
[332475824,1721225323192,156.18767148,0.00014999,2]
[332475825,1721225326432,155.04376771,0.00014999,2]
[332475827,1721225328770,390.61371959,0.00014999,2]
[332475828,1721225329035,1500.0,0.00014999,2]
[332475829,1721225329281,349.53101089,0.00014999,2]
[332475830,1721225330858,183.17870589,0.00014999,2]
[332475831,1721225337495,397.62940615,0.00014999,2]
[332475832,1721225343242,1105.10512281,0.00015,2]
[332475833,1721225349105,241.71,0.00018788,3]
[332475834,1721225349162,189.22865494,0.00014999,2]
[332475835,1721225350830,154.8458761,0.00014999,2]
[332475837,1721225360130,725.17,0.00018788,3]
[332475838,1721225362439,426.80021744,0.00014999,2]
[332475839,1721225368504,-256.6246604,0.00015704,2]
[332475840,1721225368761,-271.94212637,0.00015798,2]
[332475841,1721225368801,-488.28747137,0.00015798,2]
[332475842,1721225375784,354.46681452,0.00014999,2]
[332475843,1721225377320,155.28228897,0.00014999,2]
[332475844,1721225377353,156.26804009,0.00014999,2]
[332475845,1721225379729,525.81685911,0.00014999,2]
[332475846,1721225394123,-548.90387193,0.00015798,2]
[332475847,1721225394175,-444.46918257,0.00015798,2]
[332475848,1721225395498,838.24500156,0.00014999,2]
[332475850,1721225399420,1637.92525676,0.00014999,2]
[332475851,1721225408630,228.88726213,0.00014999,2]
[332475852,1721225409945,154.83176581,0.00014999,2]
[332475853,1721225415659,2130.77634611,0.00014999,2]
[332475854,1721225417783,183.32243818,0.00014999,2]
[332475855,1721225420680,2104.88948582,0.00014999,2]
[332475856,1721225429352,213.29720529,0.00014999,2]
[332475857,1721225430134,309.30406586,0.00014999,2]
[332475858,1721225430839,19427.37314083,0.00014999,2]
[332475863,1721225432265,155.52510828,0.00014999,2]
[332475864,1721225434448,2847.45878996,0.00015,2]
[332475866,1721225434500,16267.0092697,0.00014999,2]
[332475981,1721225436325,188.39053161,0.00014999,2]
[332476008,1721225437306,226.46621289,0.00014999,2]
[332476067,1721225438803,-889.98213416,0.00015798,2]
[332476068,1721225438814,-3759.64734034,0.00016155,2]
[332476069,1721225438826,-300.0,0.00016254,2]
[332476070,1721225438836,-12597.18819309,0.00016255,2]
[332476096,1721225439294,-4681.58004049,0.00016255,2]
[332476098,1721225439303,-14708.14742914,0.00016255,2]
[332476101,1721225439317,-615.00397474,0.00016255,2]
[332476103,1721225439328,-1872.28965978,0.00016255,2]
[332476151,1721225440872,-11907.79726539,0.00016255,2]
[332476152,1721225440882,-21275.29548149,0.00016255,2]
[332476153,1721225440892,-156.17659771,0.00016255,2]
[332476154,1721225440901,-530.8615436,0.00016255,2]
[332476155,1721225440910,-481.17644705,0.00016255,2]
[332476156,1721225440920,-2414.76449425,0.00016255,2]
[332476157,1721225440929,-301.37525549,0.00016255,2]
[332476158,1721225440939,-726.14786698,0.00016255,2]
[332476159,1721225440949,-11056.31209465,0.00016255,2]
[332476160,1721225440959,-155.07276024,0.00016255,2]
[332476161,1721225440968,-182.59909899,0.00016255,2]
[332476162,1721225440977,-240.84737953,0.00016255,2]
[332476163,1721225440987,-220.75135017,0.00016255,2]
[332476164,1721225440996,-909.7461121,0.00016255,2]
[332476165,1721225441006,-1989.67183354,0.00016255,2]
[332476166,1721225441015,-458.65976805,0.00016255,2]
[332476167,1721225441024,-403.87685403,0.00016255,2]
[332476168,1721225441033,-154.93979392,0.00016255,2]
[332476169,1721225441043,-154.79103211,0.00016255,2]
[332476170,1721225441052,-209.96027544,0.00016255,2]
[332476171,1721225441062,-154.96102002,0.00016255,2]
[332476172,1721225441074,-188.87827514,0.00016255,2]
[332476173,1721225441083,-160.18263848,0.00016255,2]
[332476174,1721225441093,-196.12614275,0.00016255,2]
[332476175,1721225441102,-552.17786472,0.00016255,2]
[332476176,1721225441112,-155.01414982,0.00016255,2]
[332476177,1721225441121,-203.54093102,0.00016255,2]
[332476178,1721225441130,-891.12787542,0.00016255,2]
[332476179,1721225441139,-319.02412472,0.00016255,2]
[332476180,1721225441149,-154.79103211,0.00016255,2]
[332476181,1721225441158,-220.15383253,0.00016255,2]
[332476182,1721225441166,-532.75729962,0.00016255,2]
[332476183,1721225441176,-494.25987775,0.00016255,2]
[332476184,1721225441186,-950.44599873,0.00016255,2]
[332476185,1721225441196,-277.01550922,0.00016801,2]
[332476186,1721225441205,-420.0,0.00017879,2]
[332476187,1721225441214,-2136.54291105,0.0001818,2]
[332476188,1721225441224,-375.33441118,0.0001818,2]
[332476189,1721225441234,-982.12918538,0.0001818,2]
[332476190,1721225441243,-4703.84902292,0.0001818,2]
[332476191,1721225441252,-180.55121184,0.0001818,2]
[332476192,1721225441262,-3778.72551572,0.0001818,2]
[332476193,1721225441271,-7619.84218767,0.0001818,2]
[332476194,1721225441280,-180.90578811,0.0001818,2]
[332476195,1721225441289,-188.39053161,0.0001818,2]
[332476196,1721225441298,-208.37440532,0.0001818,2]
[332476197,1721225441307,-160.0,0.0001818,2]
[332476198,1721225441319,-3759.6473403,0.00018468,2]
[332476199,1721225441329,-186.27461459,0.00018698,2]
[332476200,1721225441338,-8219.77475943,0.00018778,2]
[332476201,1721225441347,-191.39935973,0.00018798,2]
[332476202,1721225441357,-30000.0,0.00018798,2]
[332476203,1721225441367,-2845.62248984,0.000189,2]
[332476204,1721225441376,-758.13758367,0.00019,2]
[332476205,1721225441385,-197.57665127,0.00019,2]
[332476206,1721225441395,-164.647948,0.00019178,2]
[332476207,1721225441405,-186.27461455,0.00019499,2]
[332476208,1721225441415,-587.0,0.00019667,2]
[332476209,1721225441424,-228.33337167,0.0002,2]
[332476210,1721225441433,-764.99692513,0.0002,2]
[332476211,1721225441442,-226.06683349,0.0002,2]
[332476212,1721225441451,-293.89533444,0.0002,2]
[332476213,1721225441461,-154.88949836,0.0002,2]
[332476214,1721225441471,-309.45844772,0.0002,2]
[332476215,1721225441480,-483.42,0.00020158,3]
[332476216,1721225441490,-186.27461455,0.00020299,2]
[332476217,1721225441500,-172.967675,0.00020663,2]
[332476218,1721225441509,-3759.6473403,0.00020781,2]
[332476219,1721225441518,-8219.77475943,0.0002099,3]
[332476220,1721225441528,-4488.65892251,0.00021,2]
[332476221,1721225442325,155.01033925,0.00014999,2]
[332476258,1721225443991,-194.13946095,0.00016255,2]
[332476259,1721225444002,-2392.11751018,0.00021,2]
[332476260,1721225444023,-413.16071737,0.00016255,2]
[332476261,1721225444033,-112.18599594,0.00021,2]
[332476262,1721225444044,-200.07730814,0.00021,2]
[332476263,1721225444053,-396.60210355,0.00021095,2]
[332476264,1721225444063,-579.127659,0.00021096,2]
[332476265,1721225444075,-186.27461455,0.000211,2]
[332476266,1721225444085,-260.9,0.00021153,2]
[332476267,1721225444096,-260.9,0.00021372,2]
[332476268,1721225444107,-344.96997794,0.00021443,2]
[332476269,1721225444118,-150.0,0.00021568,2]
[332476270,1721225444128,-504.0,0.00021568,2]
[332476271,1721225444138,-260.9,0.0002159,2]
[332476272,1721225444148,-3905.60712636,0.00021603,2]
[332476273,1721225445596,580.74600593,0.00015604,2]
[332476302,1721225446409,530.8615436,0.00014999,2]
[332476317,1721225504208,196.0443464,0.00014999,2]
[332476318,1721225524511,6311.23039613,0.00014999,2]
[332476319,1721225524863,4648.67039464,0.00014999,2]
[332476320,1721225550885,936.17071385,0.00014999,2]
[332476321,1721225563284,309.21151064,0.00014999,2]
[332476322,1721225570134,2139.16865228,0.00014999,2]
[332476323,1721225578387,155.11913709,0.00014999,2]
[332476324,1721225578563,154.79103211,0.00014999,2]
[332476325,1721225581996,11085.53921939,0.00014998,2]
[332476326,1721225582612,349.6610903,0.00014999,2]
[332476327,1721225587737,375.33441118,0.00014999,2]
[332476328,1721225592447,380.69087724,0.00014999,2]
[332476329,1721225592590,154.79103211,0.00014999,2]
[332476330,1721225597762,529.42195439,0.00014999,2]
[332476332,1721225605946,195.53771313,0.00014999,2]
[332476343,1721225722709,243.03821445,0.00014999,2]
[332476345,1721225737271,183.1497,0.00015219,2]
[332476347,1721225763770,303.498334,0.00014999,2]
[332476348,1721225771405,374.71760798,0.00014999,2]
[332476351,1721225782081,298.87262421,0.00014999,2]
[332476352,1721225826207,436.49865584,0.00014999,2]
[332476353,1721225827776,3773.14321747,0.00014999,2]
[332476354,1721225833577,2375.0597379,0.00015336,2]
[332476355,1721225846078,16257.37313367,0.00014999,2]
[332476357,1721225853378,6502.93890957,0.00014999,2]
[332476358,1721225856986,154.79260842,0.00014999,2]
[332476359,1721225869510,284.26271461,0.00014999,2]
[332476360,1721225889714,9615.23092531,0.00014998,2]
[332476361,1721225930958,1491.05500079,0.00014999,2]
[332476363,1721225980836,354.46681452,0.00014999,2]
[332476364,1721225985138,1266.38237034,0.00014999,2]
[332476365,1721226009100,2391.82993865,0.00014999,2]
[332476366,1721226032237,15849.37281896,0.00014999,2]
[332476367,1721226077996,155.90975837,0.00014999,2]
[332476368,1721226094263,1106.379575,0.00015,2]
[332476370,1721226179116,246.92945182,0.00015,2]
[332476372,1721226189473,287.80677972,0.00015,2]
[332476374,1721226240521,1635.9635479,0.00014999,2]
[332476375,1721226245856,816.33,0.00018788,3]
[332476376,1721226252512,893.19437824,0.00014999,2]
[332476378,1721226269471,287.03581952,0.00015,2]
[332476380,1721226330269,878.73202262,0.00015,2]
[332476381,1721226333002,11043.39905491,0.00014998,2]